fUST/lending_fUST_20250101
["ID","MTS","AMOUNT","RATE_DAILY","PERIOD"]
[347297070,1735665048092,-500.0,0.00019726,3]
[347297071,1735665048102,-502.63721505,0.00019726,3]
[347297072,1735665048111,-500.0,0.00019726,3]
[347297073,1735665048121,-543.54,0.00019726,3]
[347297074,1735665048130,-769.83,0.00019726,3]
[347297075,1735665048140,-500.0,0.00019726,3]
[347297076,1735665048149,-500.0,0.00019726,3]
[347297077,1735665048159,-166.23710047,0.00019726,3]
[347297078,1735665048168,-500.0,0.00019726,3]
[347297079,1735665048177,-500.0,0.00019726,3]
[347297080,1735665048186,-627.66,0.00019726,3]
[347297081,1735665048196,-500.0,0.00019726,3]
[347297082,1735665048205,-1289.83,0.00019726,3]
[347297083,1735665048215,-500.0,0.00019726,3]
[347297084,1735665048225,-513.80924582,0.00019726,3]
[347297085,1735665048235,-553.41,0.00019726,3]
[347297086,1735665048245,-888.44,0.00019726,3]
[347297087,1735665048254,-913.82,0.00019726,3]
[347297088,1735665048263,-500.0,0.00019726,3]
[347297089,1735665048272,-500.0,0.00019726,3]
[347297090,1735665048281,-500.0,0.00019726,3]
[347297091,1735665048290,-689.33,0.00019726,3]
[347297092,1735665048299,-153.1686384,0.00019726,3]
[347297093,1735665048309,-500.0,0.00019726,3]
[347297094,1735665048319,-500.0,0.00019726,3]
[347297095,1735665048328,-500.0,0.00019726,3]
[347297096,1735665048338,-6404.05,0.00019726,3]
[347297097,1735665048347,-1694.83,0.00019726,3]
[347297098,1735665048356,-500.0,0.00019726,3]
[347297099,1735665048366,-500.0,0.00019726,3]
[347297100,1735665048375,-500.0,0.00019726,3]
[347297101,1735665048385,-730.85,0.00019726,3]
[347297102,1735665048394,-500.0,0.00019726,3]
[347297103,1735665048403,-489.06230314,0.00019726,3]
[347297104,1735665048413,-500.0,0.00019726,3]
[347297105,1735665048422,-500.0,0.00019726,3]
[347297106,1735665048431,-500.0,0.00019726,3]
[347297107,1735665048441,-500.0,0.00019726,3]
[347297108,1735665048450,-500.0,0.00019726,3]
[347297109,1735665048460,-991.1,0.00019726,3]
[347297110,1735665048474,-500.0,0.00019726,3]
[347297111,1735665048484,-500.0,0.00019726,3]
[347297112,1735665048492,-1665.4,0.00019726,3]
[347297113,1735665048502,-3433.1,0.00019726,3]
[347297114,1735665048513,-500.0,0.00019726,3]
[347297115,1735665048523,-500.0,0.00019726,3]
[347297116,1735665048532,-500.0,0.00019726,3]
[347297117,1735665048542,-500.0,0.00019726,3]
[347297118,1735665048551,-500.0,0.00019726,3]
[347297119,1735665048560,-500.0,0.00019726,3]
[347297120,1735665048569,-500.0,0.00019726,3]
[347297121,1735665048579,-500.0,0.00019726,3]
[347297122,1735665048588,-915.57,0.00019726,3]
[347297123,1735665048597,-1142.69,0.00019726,3]
[347297124,1735665048606,-500.0,0.00019726,3]
[347297125,1735665048615,-500.0,0.00019726,3]
[347297126,1735665048625,-509.609973,0.00019726,3]
[347297127,1735665048634,-500.0,0.00019726,3]
[347297128,1735665048643,-625.58583475,0.00019726,3]
[347297129,1735665048652,-959.18,0.00019726,3]
[347297130,1735665048661,-500.0,0.00019726,3]
[347297131,1735665048670,-500.0,0.00019726,3]
[347297132,1735665048680,-500.0,0.00019726,3]
[347297133,1735665048689,-500.0,0.00019726,3]
[347297134,1735665048698,-500.0,0.00019726,3]
[347297135,1735665048707,-1588.6,0.00019726,3]
[347297136,1735665048716,-535.8,0.00019726,3]
[347297137,1735665048725,-500.0,0.00019726,3]
[347297138,1735665048734,-648.37,0.00019726,3]
[347297139,1735665048743,-565.15,0.00019726,3]
[347297140,1735665048753,-818.49,0.00019726,3]
[347297141,1735665048763,-1764.41,0.00019726,3]
[347297142,1735665048772,-500.0,0.00019726,3]
[347297143,1735665048781,-500.0,0.00019726,3]
[347297144,1735665048790,-224.48763208,0.00019726,3]
[347297145,1735665048800,-500.0,0.00019726,3]
[347297146,1735665048809,-2158.29,0.00019726,3]
[347297147,1735665048818,-500.0,0.00019726,3]
[347297148,1735665048827,-3173.88,0.00019726,3]
[347297149,1735665048836,-500.0,0.00019726,3]
[347297150,1735665048845,-500.0,0.00019726,3]
[347297151,1735665048854,-48070.08,0.00019726,3]
[347297152,1735665048864,-1009.69,0.00019726,3]
[347297153,1735665048873,-500.0,0.00019726,3]
[347297154,1735665048883,-1142.14,0.00019726,3]
[347297155,1735665048892,-2159.63,0.00019726,3]
[347297156,1735665048901,-500.0,0.00019726,3]
[347297157,1735665048910,-992.37,0.00019726,3]
[347297158,1735665048920,-503.72974484,0.00019726,3]
[347297159,1735665048929,-1741.6,0.00019726,3]
[347297160,1735665048938,-1116.32,0.00019726,3]
[347297161,1735665048947,-500.0,0.00019726,3]
[347297162,1735665048957,-6066.18,0.00019726,3]
[347297163,1735665048966,-1258.11,0.00019726,3]
[347297164,1735665048977,-1088.29,0.00019726,3]
[347297165,1735665048986,-894.97,0.00019726,3]
[347297166,1735665048995,-500.0,0.00019726,3]
[347297167,1735665049005,-500.0,0.00019726,3]
[347297168,1735665049116,-507.69576642,0.00019726,3]
[347297169,1735665049126,-500.0,0.00019726,3]
[347297170,1735665049136,-500.0,0.00019726,3]
[347297171,1735665049145,-1289.07,0.00019726,3]
[347297172,1735665049155,-500.0,0.00019726,3]
[347297173,1735665049164,-500.0,0.00019726,3]
[347297174,1735665049173,-500.0,0.00019726,2]
[347297175,1735665049182,-1200.41,0.00019726,3]
[347297176,1735665049192,-500.0,0.00019726,3]
[347297177,1735665049201,-547.89,0.00019726,3]
[347297178,1735665049211,-1196.82,0.00019726,3]
[347297179,1735665049221,-500.0,0.00019726,3]
[347297180,1735665049230,-500.0,0.00019726,3]
[347297181,1735665049240,-970.37,0.00019726,3]
[347297182,1735665049249,-909.69,0.00019726,3]
[347297183,1735665049258,-500.0,0.00019726,3]
[347297184,1735665049268,-500.0,0.00019726,3]
[347297185,1735665049277,-500.0,0.00019726,3]
[347297186,1735665049287,-911.65,0.00019726,3]
[347297187,1735665049296,-652.4,0.00019726,3]
[347297188,1735665049305,-4416.32,0.00019726,3]
[347297189,1735665049314,-507.55,0.00019726,3]
[347297190,1735665049323,-500.0,0.00019726,3]
[347297191,1735665049333,-500.0,0.00019726,3]
[347297192,1735665049342,-591.46,0.00019726,3]
[347297193,1735665049351,-10250.27,0.00019726,3]
[347297194,1735665049361,-500.0,0.00019726,3]
[347297195,1735665049371,-1359.6,0.00019726,3]
[347297196,1735665049380,-506.22722155,0.00019726,3]
[347297197,1735665049389,-1636.8,0.00019726,3]
[347297198,1735665049398,-3361.62,0.00019726,3]
[347297199,1735665049408,-998.59,0.00019726,3]
[347297200,1735665049417,-500.0,0.00019726,3]
[347297201,1735665049428,-963.26,0.00019726,3]
[347297202,1735665049437,-500.0,0.00019726,3]
[347297203,1735665049446,-500.0,0.00019726,3]
[347297204,1735665049455,-1353.06199333,0.00019726,3]
[347297205,1735665049811,-501.80392648,0.00019178,2]
[347297206,1735665049821,-500.0,0.00019178,2]
[347297207,1735665049830,-500.0,0.00019178,2]
[347297208,1735665049840,-500.0,0.00019178,2]
[347297209,1735665049850,-277.99055866,0.00019452,3]
[347297210,1735665049859,-1109.61,0.00019452,3]
[347297211,1735665049869,-500.0,0.00019452,3]
[347297212,1735665049878,-1025.59800667,0.00019726,3]
[347297213,1735665049888,-500.0,0.00019726,3]
[347297214,1735665049897,-570.4,0.00019726,3]
[347297215,1735665049905,-503.37256293,0.00019726,3]
[347297216,1735665049914,-510.79,0.00019726,3]
[347297217,1735665049923,-418.25553526,0.00019726,3]
[347297218,1735665049944,-81.74446474,0.00019726,3]
[347297219,1735665049954,-874.71,0.00019726,3]
[347297220,1735665049963,-500.0,0.00019726,3]
[347297221,1735665049972,-650.79,0.00019726,3]
[347297222,1735665049981,-744.82105514,0.00019726,3]
[347297223,1735665050231,-442.71028171,0.00019178,2]
[347297224,1735665050242,-57.28971829,0.00019178,2]
[347297225,1735665050252,-500.0,0.00019178,2]
[347297226,1735665050261,-500.0,0.00019178,2]
[347297227,1735665050271,-500.0,0.00019178,2]
[347297228,1735665050280,-309.86894486,0.00019726,3]
[347297229,1735665050289,-500.0,0.00019726,3]
[347297230,1735665050298,-2086.75,0.00019726,3]
[347297231,1735665050308,-1109.61,0.00019726,3]
[347297232,1735665050317,-500.0,0.00019726,3]
[347297233,1735665050326,-697.544,0.0001978,2]
[347297234,1735665050336,-697.58144011,0.0001979,2]
[347297235,1735665050345,-151.0,0.000198,2]
[347297236,1735665050354,-151.0,0.000199,2]
[347297237,1735665050364,-219.99427427,0.00019946,2]
[347297238,1735665050375,-7819.6006,0.00019946,2]
[347297239,1735665050386,-1355.07,0.00019946,2]
[347297240,1735665169555,1500.0,0.00015,2]
[347297245,1735665879192,400.0,0.00013973,2]
[347297256,1735666200874,-153.0,0.0001694,2]
[347297257,1735666200901,-153.0,0.0001694,2]
[347297258,1735666200926,-159.89239171,0.00017996,2]
[347297259,1735666200951,-46.68998191,0.00018,2]
[347297298,1735666232364,-2453.31001809,0.00018,2]
[347297300,1735666232375,-159.89239171,0.00018001,2]
[347297302,1735666232384,-203.04682005,0.0001801,2]
[347297304,1735666232394,-4173.39570751,0.00018092,2]
[347297310,1735666232483,-8422.60429249,0.00018092,2]
[347297313,1735666232493,-300.0,0.00018092,2]
[347297315,1735666232503,-24900.0,0.00018101,2]
[347297317,1735666232513,-236.332528,0.0001811,2]
[347297319,1735666232522,-203.04681998,0.00018648,2]
[347297320,1735666232531,-558.06515224,0.00019078,2]
[347297321,1735666232541,-2118.59997659,0.00019078,2]
[347297322,1735666232550,-7640.77159283,0.00019078,2]
[347297323,1735666232560,-500.0,0.00019173,2]
[347297324,1735666232570,-500.0,0.00019173,2]
[347297326,1735666232579,-500.0,0.00019177,2]
[347297328,1735666232589,-398.204,0.00019177,2]
[347297330,1735666232598,-237.09469647,0.00019177,2]
[347297331,1735666232607,-623.34273011,0.00019177,2]
[347297332,1735666232617,-500.0,0.00019177,2]
[347297334,1735666232626,-500.0,0.00019178,2]
[347297335,1735666232636,-500.0,0.00019178,2]
[347297337,1735666232646,-500.0,0.00019178,2]
[347297339,1735666232656,-500.89295916,0.00019178,2]
[347297341,1735666232665,-261.67804982,0.00019178,2]
[347297349,1735666232675,-500.0,0.00019178,2]
[347297350,1735666232839,-500.43488682,0.00019178,2]
[347297352,1735666232849,-216.94715489,0.00019178,2]
[347297353,1735666232858,-500.0,0.00019178,2]
[347297354,1735666232868,-500.0,0.00019178,2]
[347297356,1735666232879,-500.0,0.00019178,2]
[347297357,1735666232890,-500.0,0.00019178,2]
[347297358,1735666232899,-500.0,0.00019178,2]
[347297359,1735666232909,-500.0,0.00019178,2]
[347297360,1735666232919,-500.0,0.00019178,2]
[347297361,1735666232928,-500.0,0.00019178,2]
[347297362,1735666232938,-500.0,0.00019178,2]
[347297363,1735666232947,-500.0,0.00019178,2]
[347297364,1735666232957,-502.82749129,0.00019178,2]
[347297365,1735666232966,-500.0,0.00019178,2]
[347297366,1735666232975,-500.0,0.00019178,2]
[347297367,1735666232984,-500.0,0.00019178,2]
[347297368,1735666232993,-500.0,0.00019178,2]
[347297369,1735666233003,-500.0,0.00019178,2]
[347297370,1735666233012,-500.0,0.00019178,2]
[347297371,1735666233021,-390.90425513,0.00019178,2]
[347297372,1735666233030,-500.0,0.00019178,2]
[347297373,1735666233039,-502.51267261,0.00019178,2]
[347297374,1735666233049,-500.0,0.00019178,2]
[347297375,1735666233059,-500.0,0.00019178,2]
[347297376,1735666233069,-500.0,0.00019178,2]
[347297377,1735666233078,-500.0,0.00019178,2]
[347297378,1735666233087,-500.0,0.00019178,2]
[347297379,1735666233096,-500.0,0.00019178,2]
[347297380,1735666233107,-500.0,0.00019178,2]
[347297381,1735666233116,-500.0,0.00019178,2]
[347297382,1735666233127,-500.0,0.00019178,2]
[347297383,1735666233136,-158.07068626,0.00019178,2]
[347297384,1735666233146,-500.0,0.00019178,2]
[347297385,1735666233155,-500.0,0.00019178,2]
[347297386,1735666233165,-500.0,0.00019178,2]
[347297387,1735666233175,-500.0,0.00019178,2]
[347297388,1735666233185,-508.5357392,0.00019178,2]
[347297389,1735666233195,-500.0,0.00019178,2]
[347297390,1735666233204,-500.0,0.00019178,2]
[347297391,1735666233214,-502.52809694,0.00019178,2]
[347297392,1735666233224,-653.94,0.00019178,2]
[347297393,1735666233234,-500.0,0.00019178,2]
[347297394,1735666233243,-500.0,0.00019178,2]
[347297395,1735666233253,-505.90057879,0.00019178,2]
[347297396,1735666233262,-500.0,0.00019178,2]
[347297397,1735666233271,-500.0,0.00019178,2]
[347297398,1735666233280,-500.0,0.00019178,2]
[347297399,1735666233290,-500.0,0.00019178,2]
[347297400,1735666233300,-500.0,0.00019178,2]
[347297401,1735666233309,-502.94474416,0.00019178,2]
[347297402,1735666233319,-500.0,0.00019178,2]
[347297403,1735666233329,-500.0,0.00019178,2]
[347297404,1735666233338,-786.21,0.00019178,2]
[347297405,1735666233348,-500.0,0.00019178,2]
[347297406,1735666233358,-500.24047302,0.00019178,2]
[347297407,1735666233368,-695.03,0.00019178,2]
[347297408,1735666233377,-530.17017517,0.00019178,2]
[347297409,1735666233386,-500.0,0.00019178,2]
[347297410,1735666233396,-500.0,0.00019178,2]
[347297411,1735666233405,-500.0,0.00019178,2]
[347297412,1735666233415,-500.0,0.00019178,2]
[347297413,1735666233425,-918.13,0.00019178,2]
[347297414,1735666233434,-500.0,0.00019178,2]
[347297415,1735666233444,-500.0,0.00019178,2]
[347297416,1735666233454,-500.0,0.00019178,2]
[347297417,1735666233464,-500.0,0.00019178,2]
[347297418,1735666233474,-453.465491,0.00019178,2]
[347297419,1735666233483,-624.39828362,0.00019178,2]
[347297420,1735666233492,-500.0,0.00019178,2]
[347297421,1735666233501,-500.0,0.00019178,2]
[347297422,1735666233511,-501.97774642,0.00019178,2]
[347297423,1735666233520,-500.0,0.00019178,2]
[347297424,1735666233529,-679.9,0.00019178,2]
[347297425,1735666233539,-264.68147103,0.00019178,2]
[347297426,1735666233549,-500.0,0.00019178,2]
[347297427,1735666233559,-500.0,0.00019178,2]
[347297428,1735666233568,-500.0,0.00019178,2]
[347297429,1735666233578,-601.5,0.00019178,2]
[347297430,1735666233587,-500.0,0.00019178,2]
[347297431,1735666233597,-920.01,0.00019178,2]
[347297432,1735666233607,-500.0,0.00019178,2]
[347297433,1735666233616,-500.0,0.00019178,2]
[347297434,1735666233626,-500.0,0.00019178,2]
[347297435,1735666233636,-500.0,0.00019178,2]
[347297436,1735666233645,-500.0,0.00019178,2]
[347297437,1735666233655,-500.0,0.00019178,2]
[347297438,1735666233665,-500.0,0.00019178,2]
[347297439,1735666233676,-500.0,0.00019178,2]
[347297440,1735666233685,-500.0,0.00019178,2]
[347297441,1735666233694,-500.0,0.00019178,2]
[347297442,1735666233703,-500.0,0.00019178,2]
[347297443,1735666233713,-500.0,0.00019178,2]
[347297444,1735666233722,-500.0,0.00019178,2]
[347297445,1735666233732,-500.0,0.00019178,2]
[347297446,1735666233741,-500.0,0.00019178,2]
[347297447,1735666233753,-520.50189285,0.00019178,2]
[347297448,1735666233762,-502.4753739,0.00019178,2]
[347297449,1735666233772,-520.9,0.00019178,2]
[347297450,1735666233782,-500.0,0.00019178,2]
[347297451,1735666233793,-500.0,0.00019178,2]
[347297452,1735666233805,-500.0,0.00019178,2]
[347297453,1735666233814,-267.91462043,0.00019178,2]
[347297454,1735666233824,-500.0,0.00019178,2]
[347297455,1735666233835,-500.0,0.00019178,2]
[347297456,1735666233844,-500.0,0.00019178,2]
[347297457,1735666233854,-500.0,0.00019178,2]
[347297458,1735666233864,-509.72166188,0.00019178,2]
[347297459,1735666233874,-500.0,0.00019178,2]
[347297460,1735666233884,-500.0,0.00019178,2]
[347297461,1735666233895,-500.0,0.00019178,2]
[347297462,1735666233905,-500.0,0.00019178,2]
[347297463,1735666233914,-500.0,0.00019178,2]
[347297464,1735666233925,-500.0,0.00019178,2]
[347297465,1735666233935,-500.0,0.00019178,2]
[347297466,1735666233945,-500.0,0.00019178,2]
[347297467,1735666233954,-500.0,0.00019178,2]
[347297468,1735666233964,-500.0,0.00019178,2]
[347297469,1735666233974,-500.0,0.00019178,2]
[347297470,1735666233983,-500.0,0.00019178,2]
[347297471,1735666233992,-498.60924069,0.00019178,2]
[347297472,1735666234001,-1456.22,0.00019178,2]
[347297473,1735666234010,-500.0,0.00019178,2]
[347297474,1735666234021,-500.0,0.00019178,2]
[347297475,1735666234031,-503.00950594,0.00019178,2]
[347297476,1735666234040,-500.0,0.00019178,2]
[347297477,1735666234050,-500.0,0.00019178,2]
[347297478,1735666234060,-976.99,0.00019178,2]
[347297479,1735666234070,-511.24,0.00019178,2]
[347297480,1735666234079,-510.45838739,0.00019178,2]
[347297481,1735666234088,-500.0,0.00019178,2]
[347297482,1735666234098,-307.13185755,0.00019178,2]
[347297483,1735666234108,-498.63295011,0.00019178,2]
[347297484,1735666234118,-537.61,0.00019178,2]
[347297485,1735666234128,-500.0,0.00019178,2]
[347297486,1735666234139,-500.0,0.00019178,2]
[347297487,1735666234149,-503.45182854,0.00019178,2]
[347297488,1735666234158,-509.609973,0.00019178,2]
[347297489,1735666234168,-545.50570438,0.00019178,2]
[347297490,1735666234178,-625.58583475,0.00019178,2]
[347297491,1735666234188,-500.0,0.00019178,2]
[347297492,1735666234198,-500.0,0.00019178,2]
[347297493,1735666234208,-500.0,0.00019178,2]
[347297494,1735666234217,-502.0730327,0.00019178,2]
[347297495,1735666234228,-500.0,0.00019178,2]
[347297496,1735666234238,-500.0,0.00019178,2]
[347297497,1735666234248,-500.0,0.00019178,2]
[347297498,1735666234258,-518.05,0.00019178,2]
[347297499,1735666234268,-1091.73,0.00019178,2]
[347297500,1735666234279,-500.0,0.00019178,2]
[347297501,1735666234289,-500.0,0.00019178,2]
[347297502,1735666234299,-500.0,0.00019178,2]
[347297503,1735666234309,-500.0,0.00019178,2]
[347297504,1735666234319,-500.0,0.00019178,2]
[347297505,1735666234329,-500.0,0.00019178,2]
[347297506,1735666234338,-500.0,0.00019178,2]
[347297507,1735666234348,-504.74346387,0.00019178,2]
[347297508,1735666234357,-500.0,0.00019178,2]
[347297509,1735666234367,-504.71921326,0.00019178,2]
[347297510,1735666234376,-462.29141388,0.00019178,2]
[347297511,1735666234385,-500.0,0.00019178,2]
[347297512,1735666234395,-500.0,0.00019178,2]
[347297513,1735666234404,-904.99,0.00019178,2]
[347297514,1735666234414,-500.0,0.00019178,2]
[347297515,1735666234424,-500.0,0.00019178,2]
[347297516,1735666234434,-500.0,0.00019178,2]
[347297517,1735666234444,-500.0,0.00019178,2]
[347297518,1735666234454,-502.27925625,0.00019178,2]
[347297519,1735666234463,-628.1552986,0.00019178,2]
[347297520,1735666234472,-500.0,0.00019178,2]
[347297521,1735666234482,-527.97128203,0.00019178,2]
[347297522,1735666234491,-500.0,0.00019178,2]
[347297523,1735666234501,-278.31624683,0.00019178,2]
[347297524,1735666234510,-500.0,0.00019178,2]
[347297525,1735666234520,-500.0,0.00019178,2]
[347297526,1735666234530,-500.0,0.00019178,2]
[347297527,1735666234540,-500.0,0.00019178,2]
[347297528,1735666234551,-500.0,0.00019178,2]
[347297529,1735666234560,-500.0,0.00019178,2]
[347297530,1735666234570,-5651.19,0.00019178,2]
[347297531,1735666234580,-638.61,0.00019178,2]
[347297532,1735666234589,-500.0,0.00019178,2]
[347297533,1735666234599,-500.0,0.00019178,2]
[347297534,1735666234608,-500.0,0.00019178,2]
[347297535,1735666234618,-500.0,0.00019178,2]
[347297536,1735666234632,-500.0,0.00019178,2]
[347297537,1735666234641,-500.0,0.00019178,2]
[347297538,1735666234651,-500.0,0.00019178,2]
[347297539,1735666234661,-500.0,0.00019178,2]
[347297540,1735666234671,-737.75,0.00019178,2]
[347297541,1735666234681,-626.60818946,0.00019178,2]
[347297542,1735666234690,-500.0,0.00019178,2]
[347297543,1735666234700,-500.000002,0.00019178,2]
[347297544,1735666234709,-500.0,0.00019178,2]
[347297545,1735666234719,-504.93773306,0.00019178,2]
[347297546,1735666234729,-500.0,0.00019178,2]
[347297547,1735666234738,-500.0,0.00019178,2]
[347297548,1735666234748,-500.0,0.00019178,2]
[347297549,1735666234758,-500.0,0.00019178,2]
[347297550,1735666234767,-500.0,0.00019178,2]
[347297551,1735666234777,-500.0,0.00019178,2]
[347297552,1735666234786,-535.57,0.00019178,2]
[347297553,1735666234797,-347.20816199,0.00019178,2]
[347297554,1735666234809,-500.0,0.00019178,2]
[347297555,1735666234819,-500.0,0.00019178,2]
[347297556,1735666234828,-500.0,0.00019178,2]
[347297557,1735666234839,-500.0,0.00019178,2]
[347297558,1735666234848,-500.0,0.00019178,2]
[347297559,1735666234857,-500.0,0.00019178,2]
[347297560,1735666234867,-500.0,0.00019178,2]
[347297561,1735666234877,-1096.18,0.00019178,2]
[347297562,1735666234887,-500.0,0.00019178,2]
[347297563,1735666234897,-500.0,0.00019178,2]
[347297564,1735666234907,-500.0,0.00019178,2]
[347297565,1735666234916,-500.0,0.00019178,2]
[347297566,1735666234927,-500.0,0.00019178,2]
[347297567,1735666234937,-383.65523745,0.00019178,2]
[347297568,1735666234947,-500.0,0.00019178,2]
[347297569,1735666234957,-500.0,0.00019178,2]
[347297570,1735666234967,-500.0,0.00019178,2]
[347297571,1735666234977,-500.0,0.00019178,2]
[347297572,1735666234986,-500.0,0.00019178,2]
[347297573,1735666234995,-500.0,0.00019178,2]
[347297574,1735666235005,-500.0,0.00019178,2]
[347297575,1735666235014,-500.0,0.00019178,2]
[347297576,1735666235024,-665.02,0.00019178,2]
[347297577,1735666235033,-500.0,0.00019178,2]
[347297578,1735666235043,-930.53,0.00019178,2]
[347297579,1735666235053,-500.0,0.00019178,2]
[347297580,1735666235062,-500.0,0.00019178,2]
[347297581,1735666235071,-590.46434558,0.00019178,2]
[347297582,1735666235082,-500.0,0.00019178,2]
[347297583,1735666235091,-1277.14,0.00019178,2]
[347297584,1735666235100,-500.0,0.00019178,2]
[347297585,1735666235110,-505.32890224,0.00019178,2]
[347297586,1735666235119,-500.0,0.00019178,2]
[347297587,1735666235129,-500.0,0.00019178,2]
[347297588,1735666235139,-851.42,0.00019178,2]
[347297589,1735666235148,-500.0,0.00019178,2]
[347297590,1735666235157,-500.0,0.00019178,2]
[347297591,1735666235166,-500.0,0.00019178,2]
[347297592,1735666235176,-1236.09,0.00019178,2]
[347297593,1735666235186,-500.0,0.00019178,2]
[347297594,1735666235195,-875.74,0.00019178,2]
[347297595,1735666235204,-500.0,0.00019178,2]
[347297596,1735666235214,-500.0,0.00019178,2]
[347297597,1735666235223,-500.0,0.00019178,2]
[347297598,1735666235233,-500.0,0.00019178,2]
[347297599,1735666235243,-500.0,0.00019178,2]
[347297600,1735666235252,-500.0,0.00019178,2]
[347297601,1735666235261,-530.14083823,0.00019178,2]
[347297602,1735666235270,-500.0,0.00019178,2]
[347297603,1735666235280,-500.0,0.00019178,2]
[347297604,1735666235290,-500.0,0.00019178,2]
[347297605,1735666235299,-500.0,0.00019178,2]
[347297606,1735666235309,-500.0,0.00019178,2]
[347297607,1735666235319,-500.0,0.00019178,2]
[347297608,1735666235328,-500.0,0.00019178,2]
[347297609,1735666235337,-188.0,0.00019178,2]
[347297610,1735666235347,-500.0,0.00019178,2]
[347297611,1735666235356,-689.33,0.00019178,2]
[347297612,1735666235365,-500.0,0.00019178,2]
[347297613,1735666235374,-1686.23,0.00019178,2]
[347297614,1735666235384,-300.36621339,0.00019178,2]
[347297615,1735666235393,-500.0,0.00019178,2]
[347297616,1735666235403,-502.06113452,0.00019178,2]
[347297617,1735666235412,-500.0,0.00019178,2]
[347297618,1735666235422,-500.0,0.00019178,2]
[347297619,1735666235432,-1302.95,0.00019178,2]
[347297620,1735666235441,-500.0,0.00019178,2]
[347297621,1735666235562,-500.0,0.00019178,2]
[347297622,1735666235572,-500.0,0.00019178,2]
[347297623,1735666235581,-500.0,0.00019178,2]
[347297624,1735666235590,-500.0,0.00019178,2]
[347297625,1735666235599,-500.0,0.00019178,2]
[347297626,1735666235609,-500.0,0.00019178,2]
[347297627,1735666235618,-593.94388458,0.00019178,2]
[347297628,1735666235627,-500.0,0.00019178,2]
[347297629,1735666235637,-1568.6,0.00019178,2]
[347297630,1735666235646,-500.0,0.00019178,2]
[347297631,1735666235655,-500.0,0.00019178,2]
[347297632,1735666235664,-500.0,0.00019178,2]
[347297633,1735666235673,-500.0,0.00019178,2]
[347297634,1735666235682,-500.0,0.00019178,2]
[347297635,1735666235691,-500.0,0.00019178,2]
[347297636,1735666235700,-500.0,0.00019178,2]
[347297637,1735666235710,-500.0,0.00019178,2]
[347297638,1735666235719,-500.0,0.00019178,2]
[347297639,1735666235728,-500.0,0.00019178,2]
[347297640,1735666235738,-923.13,0.00019178,2]
[347297641,1735666235747,-877.42,0.00019178,2]
[347297642,1735666235756,-513.48,0.00019178,2]
[347297643,1735666235765,-625.22,0.00019178,2]
[347297644,1735666235774,-500.0,0.00019178,2]
[347297645,1735666235783,-500.0,0.00019178,2]
[347297646,1735666235792,-553.41,0.00019178,2]
[347297647,1735666235804,-966.79,0.00019178,2]
[347297648,1735666235813,-500.0,0.00019178,2]
[347297649,1735666235822,-991.1,0.00019178,2]
[347297650,1735666235831,-500.0,0.00019178,2]